Cogmind - Beta 13 @@@ ROGUE MODE // 2024.04.02 @ 13:08:43 Player: orbstealer Result: Destroyed by G-47 Trooper with Particle Gun Performance ------------- Evolutions (2) 1000 Regions Visited (4) 800 Robots Destroyed (32) 160 Value Destroyed (840) 840 Prototype IDs (0) 0 Alien Tech Used (0) 0 Bonus (0) 0 TOTAL SCORE: 2800 Bonus ------- None Cogmind --------- Core Integrity 0/550 Matter 300/300 Energy 100/100 System Corruption 0% Temperature Cool (9) Movement Core (350) Ox6 Location -8/Materials Parts ------- > --- POWER (2) -------- (None) > --- PROPULSION (3) --- (None) > --- UTILITY (3) ------ Large Storage Unit > --- WEAPON (3) ------- (None) > --- INVENTORY (15) --- Light Ion Engine Small Storage Unit Large Battery (200) Large Matter Pod (18) Advanced Weight Redist. System Visual Processing Unit Utility Shielding Autogun Peak State ------------ > --- POWER ------------ Light Ion Engine Nuclear Core > --- PROPULSION ------- Compact Wheel Compact Wheel Armored Wheel > --- UTILITY ---------- Small Storage Unit Large Battery Light Armor Plating > --- WEAPON ----------- Particle Cannon Autogun Autogun > --- INVENTORY -------- Light Ion Engine Heat Sink Large Matter Pod Visual Processing Unit Utility Shielding Beam Rifle Mace [Rating: 18] Favorites ----------- Power Light Ion Engine Engine Light Ion Engine Power Core Nuclear Core Propulsion Compact Wheel Wheel Compact Wheel Utility Small Storage Unit Device Improved Terrain Scanner Storage Small Storage Unit Protection Light Armor Plating Weapon Light Cannon Energy Gun Beam Rifle Energy Cannon Particle Cannon Ballistic Gun Assault Rifle Ballistic Cannon Light Cannon Launcher Grenade Launcher Impact Weapon Mace Build | -11 -10 -9 -9 -8 ------- Run | Yrd Mat Mat Min Mat Slots Evolved 4 | . . 2 . 2 Power 1 | . . . . 1 Propulsion 1 | . . 1 . . Utility 1 | . . . . 1 Weapon 1 | . . 1 . . Parts Attached 43 | 7 9 13 . 14 Power 6 | 1 1 2 . 2 Engine 5 | 1 1 2 . 1 Core 1 | . . . . 1 Reactor . | . . . . . Propulsion 7 | 2 2 3 . . Treads . | . . . . . Leg . | . . . . . Wheel 7 | 2 2 3 . . Hover . | . . . . . Flight . | . . . . . Utility 12 | 2 2 3 . 5 Device 4 | 1 . 1 . 2 Storage 6 | 1 2 2 . 1 Processor . | . . . . . Hackware . | . . . . . Protection 2 | . . . . 2 Artifact . | . . . . . Weapon 18 | 2 4 5 . 7 Energy Gun 4 | . . 2 . 2 Energy Cannon 1 | . . 1 . . Ballistic Gun 5 | 2 1 . . 2 Ballistic Cannon 3 | . 2 1 . . Launcher 3 | . 1 1 . 1 Special Weapon . | . . . . . Impact Weapon 2 | . . . . 2 Slashing Weapon . | . . . . . Piercing Weapon . | . . . . . Special Melee Weapon . | . . . . . Unidentified Prototypes . | . . . . . Parts Lost 13 | . . 1 . 12 Power 2 | . . . . 2 Propulsion 4 | . . 1 . 3 Utility 2 | . . . . 2 Weapon 5 | . . . . 5 Highest Loss Streak 11 | . . 1 . 11 To Critical Strikes . | . . . . . Average Slot Usage (%) 97 | . 99 98 100 94 Engine 12 | . 14 11 11 13 Core 1 | . . . . 3 Wheel 28 | . 28 32 33 25 Device 5 | . 11 . . 3 Storage 18 | . 16 22 22 15 Protection 1 | . . . . 6 Energy Gun 3 | . . 11 11 . Energy Cannon 3 | . . . 11 8 Ballistic Gun 7 | . 11 . . 10 Ballistic Cannon 6 | . 4 20 . . Launcher 6 | . 11 . 11 4 Naked Turns . | . . . . . Heaviest Build 44 | 15 19 21 21 44 Greatest Support 48 | 32 32 48 44 44 Greatest Overweight (x) 8 | . . . . 8 Average Overweight (x) . | . . . . . Largest Inventory Capacity 15 | 8 8 8 8 15 Average Capacity 8 | 7 8 8 8 9 Most Carried 9 | 5 8 8 6 9 Average Carried 5 | 1 4 7 6 7 Final Capacity 15 | 8 8 8 8 15 Final Carried 8 | 1 8 6 6 8 Class Distribution -------------------- 52% | Mutant 29% | Gunner 17% | Tank Dominant Class ---------------- Mutant | -10/Materials Gunner | -9/Materials Gunner | -9/Mines Tank | -8/Materials Resources | -11 -10 -9 -9 -8 ----------- Run | Yrd Mat Mat Min Mat Matter Collected 1059 | 318 157 281 81 222 Remotely . | . . . . . Salvage Created 1018 | 154 305 253 74 232 Parts 65 | 15 21 19 1 9 Haulers Intercepted . | . . . . . Recyclers Shooed 1 | . 1 . . . Parts Field Recycled . | . . . . . Retrieved Matter . | . . . . . Parts Self-Destructed . | . . . . . Prevented . | . . . . . Kills | -11 -10 -9 -9 -8 ------- Run | Yrd Mat Mat Min Mat Combat Hostiles Destroyed 20 | . 10 6 . 4 Melee 1 | . . . . 1 Guns 5 | . . 4 . 1 Cannons 3 | . . 2 . 1 AOE 10 | . 10 . . . Classes Destroyed 9 | 2 5 1 . 1 Worker 1 | . 1 . . . Builder 1 | . 1 . . . Tunneler 5 | 4 1 . . . Recycler 2 | 1 . . 1 . Operator 1 | . . . . 1 Watcher 2 | . 1 1 . . Swarmer 3 | . 3 . . . Grunt 14 | . 7 3 . 4 Sentry 3 | . . 3 . . Best Kill Streak 6 | 5 6 2 1 2 Combat Bots Only 4 | . 4 2 . 2 Max Kills in Single Turn 2 | 1 2 1 1 1 Gunslinging . | . . . . . Exploded 2 | . 2 . . . Melee 1 | . . . . 1 Uniques/NPCs Destroyed . | . . . . . Combat | -11 -10 -9 -9 -8 -------- Run | Yrd Mat Mat Min Mat Hostile Shots Fired 177 | . 19 32 . 126 Missed 38 | . 5 8 . 25 Damage Taken 2285 | . 298 316 18 1653 Core 681 | . 70 52 6 553 Absorbed by Shields . | . . . . . Core Remaining (%) 85 | 100 72 . 85 . Volleys Fired 62 | 8 14 20 1 19 Largest 3 | 2 2 3 3 3 Hottest 154 | 40 50 135 154 114 Shots Fired 148 | 16 26 56 3 47 Gun 79 | 16 14 20 1 28 Cannon 56 | . . 36 1 19 Launcher 13 | . 12 . 1 . Special . | . . . . . Kinetic 94 | 16 14 36 . 28 Thermal 41 | . . 20 2 19 Explosive 13 | . 12 . 1 . Electromagnetic . | . . . . . Robot Hit Streak 8 | 4 8 3 2 5 Robot Miss Streak 5 | 2 2 4 . 5 Penetration Max . | . . . . . Secondary Targets . | . . . . . Shots Hit Robots 79 | 9 16 24 1 29 Core Hits 48 | 6 22 10 1 9 Critical Kills . | . . . . . Critical Parts Destroyed 1 | . . . . 1 Critical Strikes 2 | . . 1 . 1 Burn 1 | . . 1 . . Smash 1 | . . . . 1 Melee Attacks 4 | . . . . 4 Impact 4 | . . . . 4 Slashing . | . . . . . Piercing . | . . . . . Sneak Attacks . | . . . . . Combat Hostiles . | . . . . . Follow-up Attacks . | . . . . . Damage Inflicted 2033 | 117 914 402 15 585 Guns 606 | 117 104 157 15 213 Cannons 491 | . . 245 . 246 Explosions 803 | . 803 . . . Melee 126 | . . . . 126 Ramming 7 | . 7 . . . Kinetic 679 | 117 104 245 . 213 Thermal 418 | . . 157 15 246 Explosive 803 | . 803 . . . Electromagnetic . | . . . . . Impact 126 | . . . . 126 Slashing . | . . . . . Piercing . | . . . . . Highest Corruption . | . . . . . Average Corruption . | . . . . . Corruption Purged . | . . . . . Corruption Blocked . | . . . . . Overload Shots . | . . . . . Overflow Damage 20 | . . . . 20 Projectiles . | . . . . . Explosions . | . . . . . Melee 20 | . . . . 20 Knockbacks 4 | . . 2 . 2 Impact 1 | . . . . 1 Kinetic 2 | . . 2 . . Secondary 1 | . . . . 1 Self-Inflicted Damage 162 | . 142 . 20 . Shots 6 | . 5 . 1 . Rammed 1 | . 1 . . . Targets Rammed 1 | . 1 . . . Kicked . | . . . . . Crushed . | . . . . . Highest Temperature 450 | . 32 450 84 390 Average Temperature 132 | . 11 129 47 159 Received Heat Transfer 1143 | . 87 129 . 927 Effects 7 | . . 4 . 3 Shutdowns 2 | . . 1 . 1 Energy Bleed 1 | . . . . 1 Interference 3 | . . 3 . . Short Circuit 1 | . . . . 1 Siege Activations . | . . . . . Robots Corrupted . | . . . . . Combat Hostiles . | . . . . . Parts Fried . | . . . . . Impact Corruptions 1 | . . . . 1 Robots Melted . | . . . . . Combat Hostiles . | . . . . . Parts Melted 1 | . . 1 . . Heat Transferred 962 | . . 481 37 444 Parts Sabotaged . | . . . . . Parts Stolen . | . . . . . Parts Stripped . | . . . . . Power Chain Reactions . | . . . . . Alert | -11 -10 -9 -9 -8 ------- Run | Yrd Mat Mat Min Mat Peak Influence 369 | 25 369 287 47 99 Initial 76 | . 16 76 33 18 Average 125 | 10 171 202 41 51 Maximum Alert Level 1 | . 1 1 . . Low Security (%) 79 | 100 79 43 100 100 Level 1 20 | . 20 56 . . Level 2 . | . . . . . Level 3 . | . . . . . Level 4 . | . . . . . Level 5 . | . . . . . High Security . | . . . . . Max Security . | . . . . . Squads Dispatched 5 | . 1 1 . 3 Investigation 3 | . . 1 . 2 Extermination . | . . . . . Reinforcement 2 | . 1 . . 1 Assault . | . . . . . Garrison . | . . . . . Intercept . | . . . . . Searches Triggered . | . . . . . Construction Impeded . | . . . . . Haulers Reinforced . | . . . . . Active Scanning Responses . | . . . . . Cargo Convoy Interrupts . | . . . . . Stealth | -11 -10 -9 -9 -8 --------- Run | Yrd Mat Mat Min Mat Distress Signals 2 | . . 2 . . Communications Jammed . | . . . . . Distress Signals . | . . . . . Times Spotted 38 | . 14 9 . 15 Peak Tracking Total 9 | . 4 4 . 9 Tactical Retreats . | . . . . . Traps | -11 -10 -9 -9 -8 ------- Run | Yrd Mat Mat Min Mat Traps Triggered 3 | . . 2 . 1 Indirectly . | . . . . . Trap Hack Attempts . | . . . . . Triggered . | . . . . . Disarmed . | . . . . . Reprogrammed . | . . . . . Reused . | . . . . . Traps Extracted . | . . . . . Installed . | . . . . . Triggered . | . . . . . Machines | -11 -10 -9 -9 -8 ---------- Run | Yrd Mat Mat Min Mat Machines Disabled 2 | . 1 . . 1 Max in Single Turn 1 | . 1 . . 1 Machines Repaired . | . . . . . Machines Dismantled . | . . . . . Machines Sabotaged . | . . . . . Overloaded Fab Kills . | . . . . . Hacking | -11 -10 -9 -9 -8 --------- Run | Yrd Mat Mat Min Mat Machines Accessed 5 | . 2 2 . 1 Terminals 5 | . 2 2 . 1 Fabricators . | . . . . . Repair Stations . | . . . . . Recycling Units . | . . . . . Scanalyzers . | . . . . . Garrison Access . | . . . . . Total Hacks 12 | . 5 4 . 3 Successful 6 | . 2 2 . 2 Failed 6 | . 3 2 . 1 Catastrophic 2 | . 2 . . . Database Lockouts . | . . . . . Manual 11 | . 8 3 . . Terminals 12 | . 5 4 . 3 Fabricators . | . . . . . Repair Stations . | . . . . . Recycling Units . | . . . . . Scanalyzers . | . . . . . Garrison Access . | . . . . . Terminal Hacks 6 | . 2 2 . 2 Record 6 | . 2 2 . 2 Fabricator Hacks . | . . . . . Repair Station Hacks . | . . . . . Recycling Unit Hacks . | . . . . . Scanalyzer . | . . . . . Garrison Access Hacks . | . . . . . Unauthorized Hacks . | . . . . . Terminals . | . . . . . Fabricators . | . . . . . Repair Stations . | . . . . . Recycling Units . | . . . . . Scanalyzers . | . . . . . Garrison Access . | . . . . . Data Cores Recovered . | . . . . . Used . | . . . . . Hacking Detections 5 | . 2 2 . 1 Full Trace Events 2 | . . 1 . 1 Feedback Events . | . . . . . Feedback Blocked . | . . . . . Robot Schematics Acquired . | . . . . . Robots Built . | . . . . . Authchips . | . . . . . Time . | . . . . . Total Robot Build Rating . | . . . . . Part Schematics Acquired . | . . . . . Parts Built . | . . . . . Authchips . | . . . . . Time . | . . . . . Total Part Build Rating . | . . . . . Parts Repaired . | . . . . . Time . | . . . . . Parts Recycled . | . . . . . Recycled Matter . | . . . . . Retrieved Matter . | . . . . . Retrieved Components . | . . . . . Parts Scanalyzed . | . . . . . Part Schematics Acquired . | . . . . . Parts Damaged . | . . . . . Bothacking | -11 -10 -9 -9 -8 ------------ Run | Yrd Mat Mat Min Mat Used RIF Installer . | . . . . . Robots Hacked . | . . . . . Non-combat . | . . . . . Combat . | . . . . . Robot Hacks Applied . | . . . . . Relay Couplers Released . | . . . . . Fabnet Peak Effective % . | . . . . . Robots Rewired . | . . . . . Allies Hacked . | . . . . . Hacks Repelled . | . . . . . Allies | -11 -10 -9 -9 -8 -------- Run | Yrd Mat Mat Min Mat Total Allies . | . . . . . Largest Group . | . . . . . Highest-Rated Group . | . . . . . Highest-Rated Ally . | . . . . . Total Orders . | . . . . . Ally Attacks . | . . . . . Total Damage . | . . . . . Kills . | . . . . . Allies Corrupted . | . . . . . Allies Melted . | . . . . . Intel | -11 -10 -9 -9 -8 ------- Run | Yrd Mat Mat Min Mat Robot Analysis Total . | . . . . . Derelict Logs Recovered . | . . . . . Drone Launches . | . . . . . Drone Recoveries . | . . . . . Exploration | -11 -10 -9 -9 -8 ------------- Run | Yrd Mat Mat Min Mat Turns Passed 1633 | 111 548 401 124 449 Spaces Moved 1019 | 66 321 294 126 212 Core 10 | 6 . . . 4 Treads . | . . . . . Legs . | . . . . . Wheels 1009 | 60 321 294 126 208 Hover . | . . . . . Flight . | . . . . . Fastest Speed 50 | 50 100 96 96 96 Average Speed 100 | 95 100 98 96 107 Slowest Speed 450 | 100 100 100 96 450 Overloaded Moves . | . . . . . Propulsion Burnouts . | . . . . . Robots Hopped . | . . . . . Cave-ins Triggered . | . . . . . Exploration Rate (%) 22 | 5 45 22 27 15 Regions Visited 4 Branch Regions 1 Pre-discovered Areas . | . . . . . Known Exits Taken . | . . . . . Unknown Exits Taken 4 | 1 1 1 1 . Scrap Searched 1 | . . . 1 . Spaces Dug . | . . . . . Terrain Destroyed 96 | . 87 . 9 . Melee . | . . . . . Projectile . | . . . . . AOE 96 | . 87 . 9 . Terrain Rammed . | . . . . . Walls Destroyed . | . . . . . Machines Disabled . | . . . . . Actions | -11 -10 -9 -9 -8 --------- Run | Yrd Mat Mat Min Mat Total 1496 | 97 522 361 126 390 Wait 325 | 9 158 25 . 133 Move 1015 | 65 320 293 125 212 Hop . | . . . . . Pick Up 31 | 8 12 5 . 6 Fast Attach 3 | . 1 2 . . Attach 19 | 7 1 5 . 6 Detach 3 | . 1 . . 2 Swap 21 | . 7 6 . 8 Drop 12 | . 7 5 . . Fire 62 | 8 14 20 1 19 Melee 4 | . . . . 4 Ram 1 | . 1 . . . Kick . | . . . . . Crush . | . . . . . Escape Stasis . | . . . . . Rewire . | . . . . . Trap . | . . . . . Miscellaneous . | . . . . . Route ------- -11/Scrapyard -10/Materials -9/Materials -9/Mines -8/Materials History --------- Turn | Location | Event 22 | -11/Scrapyard | Discovered new exit (range 14) 112 | -11/Scrapyard | Entered Materials 312 | -10/Materials | Build established: Mutant 632 | -10/Materials | Discovered new exit (range 10) 660 | -10/Materials | Entered another Materials area 660 | -9/Materials | Evolved 2 slots: Propulsion x1, Weapon x1 958 | -9/Materials | Build established: Gunner 1054 | -9/Materials | Discovered new exit (range 7) 1061 | -9/Materials | Entered Mines 1077 | -9/Mines | Assembled infested the area 1122 | -9/Mines | Discovered new exit (range 6) 1185 | -9/Mines | Entered Materials 1185 | -8/Materials | Evolved 2 slots: Power x1, Utility x1 1621 | -8/Materials | Core integrity fell below 50% 1628 | -8/Materials | Core integrity fell below 20% 1634 | -8/Materials | Destroyed by G-47 Trooper with Particle Gun Last Messages --------------- 01607_ Particle Cannon destroyed. 01609_ Nuclear Core destroyed. 01610_ Acquired 106 matter. 01611_ Critical hit (Burn: +37). 01613_ Arm. Wheel destroyed. 01617_ Broken Com. Wheel destroyed. 01618_ G-47 Trooper suffers critical hit (Burn). 01621_ Beam Rifle destroyed. 01623_ Critical hit (Burn: +37). 01626_ Heat Sink destroyed. 01627_ G-47 Trooper knocked back. 01630_ G-47 Trooper suffers critical hit (Smash). 01630_ Destroyed Aluminum Leg. 01630_ G-47 Trooper system corrupted by crushing effect. 01630_ Critical hit (Burn: +37). 01630_ Mace destroyed. 01631_ G-47 Trooper system terminally corrupted. 01633_ Critical hit (Burn: +37). Map ----- +----------------------------------------------------+ | | | ?????????????????????????????????????????????????? | | ?????????????????????????????????????????????????? | | ?????????????????????????????????????????????????? | | ?????????????????????????????????????????????????? | | ?????????????????????????????????????????????????? | | ?????????????????????????????????????????????????? | | ?????????????????????????????????????????????????? | | ?????????????????????????????????????????????????? | | ?????????????????????????????????????????????????? | | ?????????????????????????????????????????????????? | | ?????????????????????????????????????????????????? | | ?????????????????????????????????????????????????? | | ?????????????????????????????????????????????????? | | ?????????????????????????????????????????????????? | | ?????????????????????????????????????????????????? | | ?????????????????????????????????????????????????? | | ?????????????????????????????????????????????????? | | ?????????????????????????????????????????????????? | | ???????????????????????###########???????????????? | | ?????????#?????????????# #???????????????? | | ?????????# ????????????# """ #???????????????? | | ?????????# ????????????# """""#???????????????? | | ??????#### ???????????# """""#???????????????? | | ??????? ???????????# g"""""#???????????????? | | ???????? ???????????# @ gg "" #???????????????? | | ?????????# ??????????# g=! #???????????????? | | ?????????# ??????????# =gY= #???????????????? | | ?????? # ################+##########?????????? | | ??????? / #?????????? | | ?????????# #?????????? | | ?????????# T #?????????? | | ?????????# #?????????? | | ?????????#########+######## #?????????? | | ############# ## !???????? | | + T ## !!??????? | | ############# """ """ ## """" !!??????? | | ????????????# """ """ ## """" !???????? | | ????????????# """ """ ## """" =???????? | | ????????????# ?# ?? ????????? | | ????????????##############?# ??? ##????????? | | ???????????????????????????# ""?????? #?????????? | | ???????????????????????????? ""?????????????????? | | ???????????????????????????? "??????????????????? | | ???????????????????????????? ??????????????????? | | ???????????????????????????? ??????????????????? | | ?????????????????????????????????????????????????? | | ?????????????????????????????????????????????????? | | ?????????????????????????????????????????????????? | | ?????????????????????????????????????????????????? | +----------------------------------------------------+ Best States ------------- Heat Dissipation 41 Energy Generation 19 Energy Capacity 465 Matter Stores 300 Matter Capacity 450 Sight Range 16 Terrain Scan Range 16 Terrain Scan Density 10 Armor Coverage 150 Evasion (%) 40 Item Schematics ----------------- None Robot Schematics ------------------ None Fabricated ------------ Nothing Alien Tech Used ----------------- None Achievements -------------- One Hack Too Far Challenges ------------ None Game ------ Seed FlakFirePlating Manual? 0 Play Time 00:33:00 Cumulative 2.5 hours Start 2024.04.02 @ 12:36:40 End 2024.04.02 @ 13:08:43 Sessions 1 Manual Loads 0 Difficulty Rogue Special Mode None Game No. 6 Rogue 6 Adventurer 0 Explorer 0 Win Type - Total 0 Types 0/0/0/0/0/0/0/0/0 Lore% 2 Gallery% 6 Achievement% 5 Wizard Run 0 Options --------- Layout 1 ASCII 0 Keyboard 0 Movement Mouse Keybinds 0 Fullscreen 1 Font 24/Smallcaps Map View 50x35 Zoom Use 0% Tactical HUD 1 Map Filters NONE Filters NONE Steam 1 RUN: c4cc5ca9-8172-4e03-8af9-1fe344de8b0e